[Event "Titled Tuesday Blitz February 28 Early 2023"]
[White "Demchenko, Anton"]
[Black "Martin Carmona, Gaston Manuel"]
[WhiteFideId "4160258"]
[BlackFideId "22284567"]
[WhiteElo "2545"]
[BlackElo "2245"]
[Result "1/2-1/2"]
[Round "04"]
[TimeControl "180+2"]
[Date "2023.02.28"]
[WhiteClock "0:00:10"]
[BlackClock "0:00:14"]

1. a3 {[%clk 0:02:57]}  b6 {[%clk 0:02:56]} 2. Nf3 {[%clk 0:02:53]}  Bb7 {[%clk 0:02:56]} 3. g3 {[%clk 0:02:48]}  g6 {[%clk 0:02:56]} 4. Bg2 {[%clk 0:02:47]}  Bg7 {[%clk 0:02:57]} 5. d3 {[%clk 0:02:46]}  c5 {[%clk 0:02:55]} 6. e4 {[%clk 0:02:45]}  d6 {[%clk 0:02:55]} 7. O-O {[%clk 0:02:43]}  e6 {[%clk 0:02:53]} 8. Nbd2 {[%clk 0:02:37]}  Nc6 {[%clk 0:02:53]} 9. Rb1 {[%clk 0:02:36]}  Nge7 {[%clk 0:02:53]} 10. h4 {[%clk 0:02:34]}  h6 {[%clk 0:02:53]} 11. b4 {[%clk 0:02:33]}  O-O {[%clk 0:02:51]} 12. Bb2 {[%clk 0:02:27]}  Nd4 {[%clk 0:02:40]} 13. Nxd4 {[%clk 0:02:23]}  cxd4 {[%clk 0:02:41]} 14. h5 {[%clk 0:02:22]}  g5 {[%clk 0:02:40]} 15. f4 {[%clk 0:02:14]}  gxf4 {[%clk 0:02:32]} 16. gxf4 {[%clk 0:02:14]}  Kh8 {[%clk 0:02:19]} 17. Qe1 {[%clk 0:02:09]}  Rg8 {[%clk 0:02:14]} 18. Qf2 {[%clk 0:02:09]}  Rc8 {[%clk 0:02:11]} 19. Nf3 {[%clk 0:02:05]}  e5 {[%clk 0:02:11]} 20. Rbc1 {[%clk 0:02:01]}  f5 {[%clk 0:02:07]} 21. Rce1 {[%clk 0:01:44]}  fxe4 {[%clk 0:01:58]} 22. dxe4 {[%clk 0:01:44]}  Ba6 {[%clk 0:01:58]} 23. f5 {[%clk 0:01:12]}  Bf6 {[%clk 0:01:54]} 24. Qd2 {[%clk 0:01:07]}  Qf8 {[%clk 0:01:49]} 25. Rf2 {[%clk 0:01:05]}  Rg4 {[%clk 0:01:47]} 26. Bc1 {[%clk 0:01:01]}  Kh7 {[%clk 0:01:39]} 27. Kh1 {[%clk 0:00:55]}  Qg7 {[%clk 0:01:31]} 28. Bh3 {[%clk 0:00:29]}  Rg3 {[%clk 0:01:31]} 29. Kh2 {[%clk 0:00:30]}  Rg8 {[%clk 0:01:25]} 30. Rg2 {[%clk 0:00:30]}  Rxg2+ {[%clk 0:01:12]} 31. Qxg2 {[%clk 0:00:22]}  Qf7 {[%clk 0:01:11]} 32. Bg4 {[%clk 0:00:22]}  Rg7 {[%clk 0:00:27]} 33. Rg1 {[%clk 0:00:20]}  d3 {[%clk 0:00:23]} 34. cxd3 {[%clk 0:00:19]}  Bxd3 {[%clk 0:00:23]} 35. Qd2 {[%clk 0:00:19]}  Bxe4 {[%clk 0:00:22]} 36. Qxh6+ {[%clk 0:00:18]}  Kg8 {[%clk 0:00:23]} 37. Ng5 {[%clk 0:00:14]}  Bxg5 {[%clk 0:00:19]} 38. Bxg5 {[%clk 0:00:15]}  Nxf5 {[%clk 0:00:18]} 39. Bxf5 {[%clk 0:00:11]}  Qxf5 {[%clk 0:00:18]} 40. Be3 {[%clk 0:00:04]}  Rxg1 {[%clk 0:00:12]} 41. Kxg1 {[%clk 0:00:05]}  Qg4+ {[%clk 0:00:10]} 42. Kf2 {[%clk 0:00:06]}  Qg2+ {[%clk 0:00:08]} 43. Ke1 {[%clk 0:00:07]}  Bd3 {[%clk 0:00:05]} 44. Qg5+ {[%clk 0:00:06]}  Qxg5 {[%clk 0:00:05]} 45. Bxg5 {[%clk 0:00:07]}  d5 {[%clk 0:00:06]} 46. Bf6 {[%clk 0:00:07]}  e4 {[%clk 0:00:06]} 47. Kf2 {[%clk 0:00:05]}  b5 {[%clk 0:00:05]} 48. Ke3 {[%clk 0:00:04]}  a6 {[%clk 0:00:05]} 49. Bd4 {[%clk 0:00:04]}  Kh7 {[%clk 0:00:06]} 50. Kf4 {[%clk 0:00:05]}  Kh6 {[%clk 0:00:06]} 51. Kg4 {[%clk 0:00:02]}  Be2+ {[%clk 0:00:06]} 52. Kf4 {[%clk 0:00:02]}  Kxh5 {[%clk 0:00:06]} 53. Ke3 {[%clk 0:00:03]}  Bc4 {[%clk 0:00:07]} 54. Bc5 {[%clk 0:00:03]}  Kg4 {[%clk 0:00:07]} 55. Bd4 {[%clk 0:00:04]}  Kg3 {[%clk 0:00:07]} 56. Be5+ {[%clk 0:00:04]}  Kg2 {[%clk 0:00:07]} 57. Bd4 {[%clk 0:00:04]}  Kf1 {[%clk 0:00:08]} 58. Bc3 {[%clk 0:00:05]}  Bd3 {[%clk 0:00:08]} 59. Bd2 {[%clk 0:00:05]}  Bc4 {[%clk 0:00:07]} 60. Bc3 {[%clk 0:00:05]}  Bd3 {[%clk 0:00:08]} 61. Bd2 {[%clk 0:00:06]}  d4+ {[%clk 0:00:09]} 62. Kxd4 {[%clk 0:00:06]}  Ke2 {[%clk 0:00:09]} 63. Bg5 {[%clk 0:00:05]}  Kd1 {[%clk 0:00:09]} 64. Kc3 {[%clk 0:00:06]}  Bc4 {[%clk 0:00:09]} 65. Bf4 {[%clk 0:00:06]}  Ke2 {[%clk 0:00:09]} 66. Kd4 {[%clk 0:00:06]}  Kf3 {[%clk 0:00:10]} 67. Be3 {[%clk 0:00:06]}  Ke2 {[%clk 0:00:11]} 68. Kxe4 {[%clk 0:00:06]}  Kd1 {[%clk 0:00:10]} 69. Kd4 {[%clk 0:00:04]}  Kc2 {[%clk 0:00:10]} 70. Kc5 {[%clk 0:00:04]}  Kb2 {[%clk 0:00:11]} 71. Bf4 {[%clk 0:00:03]}  Kxa3 {[%clk 0:00:11]} 72. Bc7 {[%clk 0:00:04]}  Ka4 {[%clk 0:00:10]} 73. Ba5 {[%clk 0:00:05]}  Kb3 {[%clk 0:00:10]} 74. Kb6 {[%clk 0:00:06]}  Ka4 {[%clk 0:00:10]} 75. Kxa6 {[%clk 0:00:06]}  Kb3 {[%clk 0:00:10]} 76. Kb6 {[%clk 0:00:07]}  Ka4 {[%clk 0:00:11]} 77. Kc5 {[%clk 0:00:08]}  Kb3 {[%clk 0:00:11]} 78. Kd4 {[%clk 0:00:08]}  Ka4 {[%clk 0:00:12]} 79. Kc3 {[%clk 0:00:09]}  Ka3 {[%clk 0:00:13]} 80. Kc2 {[%clk 0:00:09]}  Ka4 {[%clk 0:00:14]} 81. Kb2 {[%clk 0:00:10]}  Bd3 {[%clk 0:00:13]} 82. Kc3 {[%clk 0:00:10]}  Bc4 {[%clk 0:00:14]} 83. Kd4 {[%clk 0:00:10]} 1/2-1/2


[Site "https://www.chess.com"]

[Event "Titled Tuesday Blitz February 28 Early 2023"]
[White "Rodriguez Fontecha, Marcos"]
[Black "Yuan, Qingyu"]
[WhiteFideId "2256576"]
[BlackFideId "8609772"]
[WhiteElo "2263"]
[BlackElo "2359"]
[Result "0-1"]
[Round "04"]
[TimeControl "180+2"]
[Date "2023.02.28"]
[WhiteClock "0:00:03"]
[BlackClock "0:00:04"]

1. d4 {[%clk 0:02:57]}  Nf6 {[%clk 0:02:58]} 2. Nf3 {[%clk 0:02:57]}  g6 {[%clk 0:02:59]} 3. Bg5 {[%clk 0:02:57]}  Bg7 {[%clk 0:02:59]} 4. c3 {[%clk 0:02:57]}  O-O {[%clk 0:02:58]} 5. Nbd2 {[%clk 0:02:58]}  d5 {[%clk 0:02:56]} 6. e3 {[%clk 0:02:57]}  Nbd7 {[%clk 0:02:54]} 7. Be2 {[%clk 0:02:56]}  a5 {[%clk 0:02:54]} 8. O-O {[%clk 0:02:56]}  a4 {[%clk 0:02:54]} 9. Re1 {[%clk 0:02:55]}  Re8 {[%clk 0:02:49]} 10. c4 {[%clk 0:02:53]}  c6 {[%clk 0:02:45]} 11. cxd5 {[%clk 0:02:48]}  cxd5 {[%clk 0:02:45]} 12. Bb5 {[%clk 0:02:48]}  Qa5 {[%clk 0:02:45]} 13. Qe2 {[%clk 0:02:45]}  Rd8 {[%clk 0:02:34]} 14. Rec1 {[%clk 0:02:41]}  Nb6 {[%clk 0:02:26]} 15. Bf4 {[%clk 0:02:39]}  Ne8 {[%clk 0:02:24]} 16. Rc5 {[%clk 0:02:28]}  Qa7 {[%clk 0:02:12]} 17. Rac1 {[%clk 0:02:24]}  Bd7 {[%clk 0:02:13]} 18. a3 {[%clk 0:02:12]}  e6 {[%clk 0:02:06]} 19. Ne5 {[%clk 0:02:11]}  Bf8 {[%clk 0:02:00]} 20. R5c2 {[%clk 0:01:52]}  Bxb5 {[%clk 0:01:52]} 21. Qxb5 {[%clk 0:01:53]}  Nd6 {[%clk 0:01:52]} 22. Qd3 {[%clk 0:01:47]}  Rdc8 {[%clk 0:01:49]} 23. Rxc8 {[%clk 0:01:39]}  Rxc8 {[%clk 0:01:49]} 24. Rxc8 {[%clk 0:01:39]}  Nbxc8 {[%clk 0:01:46]} 25. Nd7 {[%clk 0:01:36]}  Be7 {[%clk 0:01:41]} 26. Qc2 {[%clk 0:01:30]}  Qa5 {[%clk 0:01:27]} 27. h3 {[%clk 0:01:19]}  b5 {[%clk 0:01:23]} 28. Nf3 {[%clk 0:01:14]}  Nc4 {[%clk 0:01:23]} 29. h4 {[%clk 0:01:04]}  h5 {[%clk 0:01:19]} 30. Nfe5 {[%clk 0:01:02]}  Kg7 {[%clk 0:01:06]} 31. Nxg6 {[%clk 0:00:43]}  Qe1+ {[%clk 0:00:49]} 32. Kh2 {[%clk 0:00:43]}  fxg6 {[%clk 0:00:50]} 33. Ne5 {[%clk 0:00:43]}  Nxe5 {[%clk 0:00:36]} 34. Bxe5+ {[%clk 0:00:43]}  Kf7 {[%clk 0:00:35]} 35. Qxc8 {[%clk 0:00:44]}  Qxf2 {[%clk 0:00:35]} 36. Qh8 {[%clk 0:00:43]}  Qxh4+ {[%clk 0:00:35]} 37. Kg1 {[%clk 0:00:42]}  Qe1+ {[%clk 0:00:29]} 38. Kh2 {[%clk 0:00:43]}  Qxe3 {[%clk 0:00:24]} 39. Qg7+ {[%clk 0:00:42]}  Ke8 {[%clk 0:00:25]} 40. Qxg6+ {[%clk 0:00:43]}  Kd7 {[%clk 0:00:25]} 41. Qxh5 {[%clk 0:00:40]}  Qf2 {[%clk 0:00:22]} 42. Qh7 {[%clk 0:00:35]}  Qxb2 {[%clk 0:00:22]} 43. Qd3 {[%clk 0:00:28]}  Qb3 {[%clk 0:00:20]} 44. Qf1 {[%clk 0:00:24]}  Bxa3 {[%clk 0:00:18]} 45. g4 {[%clk 0:00:18]}  Qc2+ {[%clk 0:00:17]} 46. Kh3 {[%clk 0:00:17]}  Qb3+ {[%clk 0:00:15]} 47. Kh4 {[%clk 0:00:17]}  Be7+ {[%clk 0:00:15]} 48. g5 {[%clk 0:00:16]}  a3 {[%clk 0:00:15]} 49. Bf6 {[%clk 0:00:12]}  Bd6 {[%clk 0:00:12]} 50. Be5 {[%clk 0:00:11]}  a2 {[%clk 0:00:08]} 51. Bxd6 {[%clk 0:00:07]}  Kxd6 {[%clk 0:00:09]} 52. Qf8+ {[%clk 0:00:07]}  Kd7 {[%clk 0:00:08]} 53. Qf7+ {[%clk 0:00:07]}  Kd8 {[%clk 0:00:07]} 54. Qf8+ {[%clk 0:00:07]}  Kc7 {[%clk 0:00:07]} 55. Qe7+ {[%clk 0:00:06]}  Kb6 {[%clk 0:00:08]} 56. Qc5+ {[%clk 0:00:03]}  Ka6 {[%clk 0:00:07]} 57. Qc6+ {[%clk 0:00:03]}  Ka5 {[%clk 0:00:08]} 58. Qa8+ {[%clk 0:00:03]}  Kb4 {[%clk 0:00:08]} 59. g6 {[%clk 0:00:04]}  Qa4 {[%clk 0:00:05]} 60. Qd8 {[%clk 0:00:03]}  a1=Q {[%clk 0:00:05]} 61. Qd6+ {[%clk 0:00:04]}  Kc4 {[%clk 0:00:04]} 62. Qc6+ {[%clk 0:00:04]}  Kd3 {[%clk 0:00:05]} 63. g7 {[%clk 0:00:04]}  Q1xd4+ {[%clk 0:00:05]} 64. Kh5 {[%clk 0:00:04]}  Qxg7 {[%clk 0:00:05]} 65. Qc3+ {[%clk 0:00:03]}  Qxc3 {[%clk 0:00:04]} 0-1


[Site "https://www.chess.com"]

[Event "Titled Tuesday Blitz February 28 Early 2023"]
[White "Chernomordik, Pavel"]
[Black "Spata, German"]
[WhiteFideId "2804530"]
[BlackFideId "113026"]
[WhiteElo "2193"]
[BlackElo "2238"]
[Result "0-1"]
[Round "04"]
[TimeControl "180+2"]
[Date "2023.02.28"]
[WhiteClock "0:00:02"]
[BlackClock "0:00:05"]

1. e4 {[%clk 0:03:00]}  g6 {[%clk 0:02:53]} 2. h4 {[%clk 0:02:55]}  h6 {[%clk 0:02:52]} 3. f4 {[%clk 0:02:54]}  Bg7 {[%clk 0:02:48]} 4. h5 {[%clk 0:02:54]}  d6 {[%clk 0:02:47]} 5. hxg6 {[%clk 0:02:53]}  fxg6 {[%clk 0:02:48]} 6. Bc4 {[%clk 0:02:47]}  e6 {[%clk 0:02:47]} 7. Qg4 {[%clk 0:02:42]}  Qf6 {[%clk 0:02:41]} 8. Nf3 {[%clk 0:02:28]}  Nc6 {[%clk 0:02:40]} 9. d4 {[%clk 0:02:26]}  e5 {[%clk 0:02:32]} 10. Qg3 {[%clk 0:02:20]}  Nxd4 {[%clk 0:01:50]} 11. Nxd4 {[%clk 0:01:51]}  exd4 {[%clk 0:01:51]} 12. Na3 {[%clk 0:01:50]}  Bd7 {[%clk 0:01:47]} 13. Bd2 {[%clk 0:01:47]}  O-O-O {[%clk 0:01:40]} 14. O-O-O {[%clk 0:01:45]}  Ne7 {[%clk 0:01:40]} 15. Bd3 {[%clk 0:01:38]}  Nc6 {[%clk 0:01:39]} 16. Nc4 {[%clk 0:01:36]}  Kb8 {[%clk 0:01:36]} 17. Rde1 {[%clk 0:01:28]}  Rde8 {[%clk 0:01:30]} 18. Rhf1 {[%clk 0:01:17]}  Rhg8 {[%clk 0:01:24]} 19. e5 {[%clk 0:01:11]}  dxe5 {[%clk 0:01:11]} 20. fxe5 {[%clk 0:01:06]}  Qe6 {[%clk 0:01:09]} 21. Bxg6 {[%clk 0:00:57]}  Qxc4 {[%clk 0:01:03]} 22. Bxe8 {[%clk 0:00:56]}  Bxe8 {[%clk 0:01:03]} 23. e6 {[%clk 0:00:45]}  Qxa2 {[%clk 0:00:58]} 24. Qa3 {[%clk 0:00:39]}  Qd5 {[%clk 0:00:41]} 25. e7 {[%clk 0:00:33]}  Qd6 {[%clk 0:00:32]} 26. Bf4 {[%clk 0:00:16]}  Qxa3 {[%clk 0:00:28]} 27. bxa3 {[%clk 0:00:16]}  Kc8 {[%clk 0:00:29]} 28. Re6 {[%clk 0:00:15]}  Kd7 {[%clk 0:00:28]} 29. Rfe1 {[%clk 0:00:15]}  Bf7 {[%clk 0:00:26]} 30. R6e2 {[%clk 0:00:09]}  Re8 {[%clk 0:00:26]} 31. g4 {[%clk 0:00:08]}  Rxe7 {[%clk 0:00:16]} 32. Rxe7+ {[%clk 0:00:07]}  Nxe7 {[%clk 0:00:17]} 33. Bxc7 {[%clk 0:00:07]}  Nd5 {[%clk 0:00:16]} 34. Be5 {[%clk 0:00:07]}  Bxe5 {[%clk 0:00:08]} 35. Rxe5 {[%clk 0:00:06]}  Nf6 {[%clk 0:00:08]} 36. g5 {[%clk 0:00:05]}  hxg5 {[%clk 0:00:08]} 37. Rxg5 {[%clk 0:00:05]}  Nd5 {[%clk 0:00:07]} 38. Rg4 {[%clk 0:00:03]}  Be6 {[%clk 0:00:05]} 39. Rxd4 {[%clk 0:00:02]}  Kc6 {[%clk 0:00:05]} 0-1


[Site "https://www.chess.com"]

[Event "Titled Tuesday Blitz February 28 Early 2023"]
[White "Atakhan, Abtin"]
[Black "Chernov, Mikhail"]
[WhiteFideId "22502203"]
[BlackFideId "24143170"]
[WhiteElo "2189"]
[BlackElo "2113"]
[Result "1-0"]
[Round "04"]
[TimeControl "180+2"]
[Date "2023.02.28"]
[WhiteClock "0:00:27"]
[BlackClock "0:00:05"]

1. c4 {[%clk 0:02:59]}  c5 {[%clk 0:02:58]} 2. Nf3 {[%clk 0:02:58]}  Nc6 {[%clk 0:02:54]} 3. Nc3 {[%clk 0:02:59]}  e5 {[%clk 0:02:54]} 4. g3 {[%clk 0:02:59]}  g6 {[%clk 0:02:54]} 5. Bg2 {[%clk 0:02:59]}  Bg7 {[%clk 0:02:55]} 6. d3 {[%clk 0:02:59]}  Nge7 {[%clk 0:02:55]} 7. O-O {[%clk 0:02:59]}  d6 {[%clk 0:02:55]} 8. Rb1 {[%clk 0:02:57]}  O-O {[%clk 0:02:56]} 9. a3 {[%clk 0:02:58]}  a5 {[%clk 0:02:56]} 10. Bg5 {[%clk 0:02:58]}  f6 {[%clk 0:02:52]} 11. Be3 {[%clk 0:02:57]}  Be6 {[%clk 0:02:50]} 12. Ne1 {[%clk 0:02:56]}  Rb8 {[%clk 0:02:30]} 13. Nc2 {[%clk 0:02:54]}  Nd4 {[%clk 0:02:29]} 14. b4 {[%clk 0:02:50]}  b6 {[%clk 0:02:14]} 15. Bxd4 {[%clk 0:02:43]}  exd4 {[%clk 0:02:01]} 16. Nb5 {[%clk 0:02:43]}  d5 {[%clk 0:01:57]} 17. bxc5 {[%clk 0:02:38]}  bxc5 {[%clk 0:01:54]} 18. cxd5 {[%clk 0:02:35]}  Bxd5 {[%clk 0:01:51]} 19. a4 {[%clk 0:02:28]}  Bxg2 {[%clk 0:01:50]} 20. Kxg2 {[%clk 0:02:28]}  Nd5 {[%clk 0:01:50]} 21. Qd2 {[%clk 0:02:17]}  Re8 {[%clk 0:01:48]} 22. Nca3 {[%clk 0:02:15]}  f5 {[%clk 0:01:37]} 23. Nc4 {[%clk 0:02:12]}  f4 {[%clk 0:01:28]} 24. Rfe1 {[%clk 0:02:04]}  Rxb5 {[%clk 0:01:04]} 25. Rxb5 {[%clk 0:01:53]}  Nc3 {[%clk 0:01:04]} 26. Rxc5 {[%clk 0:01:31]}  Bh6 {[%clk 0:00:38]} 27. f3 {[%clk 0:01:27]}  Bf8 {[%clk 0:00:31]} 28. Re5 {[%clk 0:01:23]}  fxg3 {[%clk 0:00:21]} 29. hxg3 {[%clk 0:01:19]}  Bb4 {[%clk 0:00:22]} 30. Qf4 {[%clk 0:00:54]}  Nd5 {[%clk 0:00:18]} 31. Rxe8+ {[%clk 0:00:45]}  Qxe8 {[%clk 0:00:18]} 32. Qxd4 {[%clk 0:00:45]}  Bxe1 {[%clk 0:00:15]} 33. Qxd5+ {[%clk 0:00:45]}  Kg7 {[%clk 0:00:14]} 34. e4 {[%clk 0:00:43]}  Qxa4 {[%clk 0:00:14]} 35. Nd6 {[%clk 0:00:35]}  Qc2+ {[%clk 0:00:14]} 36. Kh3 {[%clk 0:00:35]}  Qc1 {[%clk 0:00:08]} 37. Qb7+ {[%clk 0:00:30]}  Kh6 {[%clk 0:00:08]} 38. Nf7+ {[%clk 0:00:31]}  Kg7 {[%clk 0:00:08]} 39. Ng5+ {[%clk 0:00:31]}  Kf6 {[%clk 0:00:06]} 40. Qf7+ {[%clk 0:00:25]}  Kxg5 {[%clk 0:00:06]} 41. f4+ {[%clk 0:00:26]}  Kh6 {[%clk 0:00:05]} 42. Qf8+ {[%clk 0:00:26]}  Kh5 {[%clk 0:00:05]} 43. g4# {[%clk 0:00:27]} 1-0


[Site "https://www.chess.com"]

[Event "Titled Tuesday Blitz February 28 Early 2023"]
[White "Yayloyan, Konstantin"]
[Black "Diaz Perez, Michel Alejandro"]
[WhiteFideId "13307088"]
[BlackFideId "3517179"]
[WhiteElo "2190"]
[BlackElo "2333"]
[Result "0-1"]
[Round "04"]
[TimeControl "180+2"]
[Date "2023.02.28"]
[WhiteClock "0:00:05"]
[BlackClock "0:00:15"]

1. e4 {[%clk 0:03:00]}  d6 {[%clk 0:02:57]} 2. d4 {[%clk 0:03:00]}  Nf6 {[%clk 0:02:58]} 3. Nc3 {[%clk 0:03:01]}  e5 {[%clk 0:02:58]} 4. Nf3 {[%clk 0:03:01]}  Nbd7 {[%clk 0:02:58]} 5. g4 {[%clk 0:03:01]}  g6 {[%clk 0:02:57]} 6. Rg1 {[%clk 0:02:55]}  c6 {[%clk 0:02:56]} 7. h4 {[%clk 0:02:54]}  b5 {[%clk 0:02:52]} 8. a3 {[%clk 0:02:46]}  Rb8 {[%clk 0:02:28]} 9. Be3 {[%clk 0:02:44]}  a5 {[%clk 0:02:26]} 10. Bd3 {[%clk 0:02:33]}  h5 {[%clk 0:02:21]} 11. gxh5 {[%clk 0:02:28]}  Nxh5 {[%clk 0:02:17]} 12. Ne2 {[%clk 0:02:24]}  Bg7 {[%clk 0:02:11]} 13. Qd2 {[%clk 0:02:21]}  b4 {[%clk 0:02:05]} 14. axb4 {[%clk 0:02:20]}  axb4 {[%clk 0:02:06]} 15. Ng3 {[%clk 0:02:02]}  Nxg3 {[%clk 0:01:56]} 16. Rxg3 {[%clk 0:01:59]}  exd4 {[%clk 0:01:56]} 17. Nxd4 {[%clk 0:01:54]}  Ne5 {[%clk 0:01:44]} 18. Bg5 {[%clk 0:01:41]}  Qb6 {[%clk 0:01:42]} 19. Nf3 {[%clk 0:01:15]}  Be6 {[%clk 0:01:26]} 20. Ra6 {[%clk 0:01:01]}  Qc7 {[%clk 0:00:58]} 21. Nd4 {[%clk 0:00:51]}  Bc8 {[%clk 0:00:45]} 22. Ra1 {[%clk 0:00:38]}  f6 {[%clk 0:00:42]} 23. Be3 {[%clk 0:00:33]}  Rxh4 {[%clk 0:00:43]} 24. f4 {[%clk 0:00:26]}  Nxd3+ {[%clk 0:00:41]} 25. Qxd3 {[%clk 0:00:25]}  Rh1+ {[%clk 0:00:41]} 26. Bg1 {[%clk 0:00:22]}  d5 {[%clk 0:00:39]} 27. Rxg6 {[%clk 0:00:19]}  Kf8 {[%clk 0:00:27]} 28. Qg3 {[%clk 0:00:18]}  c5 {[%clk 0:00:18]} 29. Ne2 {[%clk 0:00:10]}  Qe7 {[%clk 0:00:18]} 30. e5 {[%clk 0:00:09]}  fxe5 {[%clk 0:00:16]} 31. fxe5 {[%clk 0:00:10]}  Bf5 {[%clk 0:00:15]} 32. Qf3 {[%clk 0:00:06]}  Qf7 {[%clk 0:00:15]} 33. Rg5 {[%clk 0:00:05]}  Be4 {[%clk 0:00:15]} 34. Qf6 {[%clk 0:00:05]}  Bxf6 {[%clk 0:00:15]} 35. exf6 {[%clk 0:00:05]}  Qxf6 {[%clk 0:00:15]} 0-1


[Site "https://www.chess.com"]

[Event "Titled Tuesday Blitz February 28 Early 2023"]
[White "Klose, Eli"]
[Black "Boraso, Alessio"]
[WhiteFideId "16242955"]
[BlackFideId "848077"]
[WhiteElo "2613"]
[BlackElo "2286"]
[Result "1-0"]
[Round "04"]
[TimeControl "180+2"]
[Date "2023.02.28"]
[WhiteClock "0:00:38"]
[BlackClock "0:00:02"]

1. e4 {[%clk 0:03:00]}  c5 {[%clk 0:02:56]} 2. Nc3 {[%clk 0:03:00]}  Nc6 {[%clk 0:02:55]} 3. g3 {[%clk 0:03:01]}  g6 {[%clk 0:02:55]} 4. d3 {[%clk 0:03:01]}  Bg7 {[%clk 0:02:56]} 5. Bg2 {[%clk 0:03:02]}  d6 {[%clk 0:02:56]} 6. Be3 {[%clk 0:03:02]}  e6 {[%clk 0:02:55]} 7. Qd2 {[%clk 0:03:02]}  Nd4 {[%clk 0:02:55]} 8. Nd1 {[%clk 0:02:59]}  h5 {[%clk 0:02:46]} 9. c3 {[%clk 0:02:59]}  Nc6 {[%clk 0:02:47]} 10. h3 {[%clk 0:02:59]}  Nge7 {[%clk 0:02:45]} 11. Ne2 {[%clk 0:02:59]}  b6 {[%clk 0:02:41]} 12. O-O {[%clk 0:02:59]}  Bb7 {[%clk 0:02:42]} 13. f4 {[%clk 0:02:59]}  Qd7 {[%clk 0:02:42]} 14. d4 {[%clk 0:02:56]}  cxd4 {[%clk 0:02:35]} 15. Nxd4 {[%clk 0:02:57]}  Nxd4 {[%clk 0:02:26]} 16. Bxd4 {[%clk 0:02:56]}  O-O {[%clk 0:02:27]} 17. Bxg7 {[%clk 0:02:56]}  Kxg7 {[%clk 0:02:28]} 18. Ne3 {[%clk 0:02:54]}  Rad8 {[%clk 0:02:14]} 19. f5 {[%clk 0:02:45]}  exf5 {[%clk 0:02:11]} 20. exf5 {[%clk 0:02:46]}  Ng8 {[%clk 0:01:36]} 21. Bxb7 {[%clk 0:02:37]}  Qxb7 {[%clk 0:01:36]} 22. Nd5 {[%clk 0:02:37]}  Rde8 {[%clk 0:01:25]} 23. f6+ {[%clk 0:02:35]}  Kh7 {[%clk 0:01:22]} 24. Rae1 {[%clk 0:02:20]}  Re6 {[%clk 0:01:08]} 25. c4 {[%clk 0:02:10]}  Rfe8 {[%clk 0:01:06]} 26. Rxe6 {[%clk 0:02:04]}  Rxe6 {[%clk 0:01:04]} 27. Qd3 {[%clk 0:01:52]}  b5 {[%clk 0:00:58]} 28. cxb5 {[%clk 0:01:43]}  Re5 {[%clk 0:00:58]} 29. Rd1 {[%clk 0:01:41]}  Qc8 {[%clk 0:00:44]} 30. a4 {[%clk 0:01:34]}  Qxh3 {[%clk 0:00:37]} 31. Nf4 {[%clk 0:01:27]}  Qg4 {[%clk 0:00:28]} 32. Rd2 {[%clk 0:01:17]}  Nxf6 {[%clk 0:00:18]} 33. Kg2 {[%clk 0:01:10]}  h4 {[%clk 0:00:16]} 34. Qf3 {[%clk 0:01:00]}  Qxg3+ {[%clk 0:00:03]} 35. Qxg3 {[%clk 0:01:00]}  hxg3 {[%clk 0:00:04]} 36. Rxd6 {[%clk 0:00:59]}  Kg7 {[%clk 0:00:03]} 37. Ra6 {[%clk 0:00:55]}  Re4 {[%clk 0:00:02]} 38. Kxg3 {[%clk 0:00:53]}  Re3+ {[%clk 0:00:02]} 39. Kf2 {[%clk 0:00:52]}  Re7 {[%clk 0:00:03]} 40. a5 {[%clk 0:00:41]}  Ne4+ {[%clk 0:00:04]} 41. Kg2 {[%clk 0:00:40]}  Nc5 {[%clk 0:00:05]} 42. Rc6 {[%clk 0:00:40]}  Na4 {[%clk 0:00:02]} 43. b3 {[%clk 0:00:38]} 1-0


[Site "https://www.chess.com"]

[Event "Titled Tuesday Blitz February 28 Early 2023"]
[White "Lopez Del Alamo, Antonio"]
[Black "Janaszak, Dawid"]
[WhiteFideId "2227339"]
[BlackFideId "1119206"]
[WhiteElo "2175"]
[BlackElo "2220"]
[Result "1-0"]
[Round "04"]
[TimeControl "180+2"]
[Date "2023.02.28"]
[WhiteClock "0:00:11"]
[BlackClock "0:00:17"]

1. e4 {[%clk 0:03:00]}  g6 {[%clk 0:02:58]} 2. d4 {[%clk 0:03:00]}  Bg7 {[%clk 0:02:58]} 3. c4 {[%clk 0:03:00]}  c5 {[%clk 0:02:58]} 4. d5 {[%clk 0:02:59]}  d6 {[%clk 0:02:58]} 5. Nc3 {[%clk 0:02:59]}  Nf6 {[%clk 0:02:59]} 6. Nf3 {[%clk 0:02:59]}  O-O {[%clk 0:02:59]} 7. Be2 {[%clk 0:02:58]}  Bg4 {[%clk 0:02:58]} 8. O-O {[%clk 0:02:55]}  e6 {[%clk 0:02:58]} 9. h3 {[%clk 0:02:53]}  Bxf3 {[%clk 0:02:58]} 10. Bxf3 {[%clk 0:02:53]}  exd5 {[%clk 0:02:59]} 11. cxd5 {[%clk 0:02:51]}  Nfd7 {[%clk 0:02:57]} 12. a4 {[%clk 0:02:50]}  Na6 {[%clk 0:02:55]} 13. Be2 {[%clk 0:02:49]}  Nb4 {[%clk 0:02:55]} 14. Bc4 {[%clk 0:02:44]}  Ne5 {[%clk 0:02:44]} 15. Be2 {[%clk 0:02:43]}  c4 {[%clk 0:02:39]} 16. Be3 {[%clk 0:02:35]}  Ned3 {[%clk 0:02:37]} 17. Rb1 {[%clk 0:02:35]}  Re8 {[%clk 0:02:21]} 18. Qd2 {[%clk 0:02:32]}  a6 {[%clk 0:02:12]} 19. Bxd3 {[%clk 0:02:21]}  cxd3 {[%clk 0:02:01]} 20. Nd1 {[%clk 0:02:15]}  Qa5 {[%clk 0:01:51]} 21. b3 {[%clk 0:02:13]}  Rxe4 {[%clk 0:01:51]} 22. Nb2 {[%clk 0:02:12]}  Qxd5 {[%clk 0:01:47]} 23. Nc4 {[%clk 0:02:04]}  b5 {[%clk 0:01:09]} 24. Nb6 {[%clk 0:01:53]}  Qb7 {[%clk 0:01:08]} 25. Nxa8 {[%clk 0:01:53]}  Qxa8 {[%clk 0:01:09]} 26. Rfe1 {[%clk 0:01:37]}  Nc2 {[%clk 0:00:55]} 27. Red1 {[%clk 0:01:30]}  Nxe3 {[%clk 0:00:54]} 28. fxe3 {[%clk 0:01:30]}  Bh6 {[%clk 0:00:54]} 29. Qxd3 {[%clk 0:01:27]}  Bxe3+ {[%clk 0:00:54]} 30. Kh1 {[%clk 0:01:25]}  Bc5 {[%clk 0:00:40]} 31. axb5 {[%clk 0:01:13]}  axb5 {[%clk 0:00:37]} 32. Qd5 {[%clk 0:01:13]}  Qe8 {[%clk 0:00:36]} 33. Ra1 {[%clk 0:01:11]}  Kg7 {[%clk 0:00:34]} 34. Rf1 {[%clk 0:00:58]}  Qe7 {[%clk 0:00:31]} 35. Rxf7+ {[%clk 0:00:27]}  Qxf7 {[%clk 0:00:32]} 36. Qxe4 {[%clk 0:00:27]}  h5 {[%clk 0:00:33]} 37. b4 {[%clk 0:00:25]}  Bb6 {[%clk 0:00:27]} 38. Rd1 {[%clk 0:00:24]}  Qf2 {[%clk 0:00:16]} 39. Qd5 {[%clk 0:00:19]}  Be3 {[%clk 0:00:14]} 40. Qxd6 {[%clk 0:00:17]}  Bf4 {[%clk 0:00:13]} 41. Qd4+ {[%clk 0:00:17]}  Qxd4 {[%clk 0:00:13]} 42. Rxd4 {[%clk 0:00:18]}  Bg5 {[%clk 0:00:11]} 43. Rd5 {[%clk 0:00:18]}  Kf6 {[%clk 0:00:12]} 44. Rxb5 {[%clk 0:00:18]}  Be3 {[%clk 0:00:12]} 45. Rb7 {[%clk 0:00:15]}  Ke6 {[%clk 0:00:12]} 46. g3 {[%clk 0:00:13]}  Bd4 {[%clk 0:00:13]} 47. b5 {[%clk 0:00:13]}  Kd6 {[%clk 0:00:13]} 48. Kg2 {[%clk 0:00:13]}  Kc5 {[%clk 0:00:13]} 49. Kf3 {[%clk 0:00:13]}  Be5 {[%clk 0:00:13]} 50. g4 {[%clk 0:00:12]}  hxg4+ {[%clk 0:00:13]} 51. hxg4 {[%clk 0:00:13]}  g5 {[%clk 0:00:14]} 52. Ke4 {[%clk 0:00:14]}  Bf4 {[%clk 0:00:14]} 53. Kf5 {[%clk 0:00:13]}  Bd2 {[%clk 0:00:14]} 54. Rg7 {[%clk 0:00:12]}  Kxb5 {[%clk 0:00:15]} 55. Rxg5 {[%clk 0:00:12]}  Kc6 {[%clk 0:00:16]} 56. Rg6+ {[%clk 0:00:11]}  Kd7 {[%clk 0:00:16]} 57. Re6 {[%clk 0:00:12]}  Bh6 {[%clk 0:00:15]} 58. Re2 {[%clk 0:00:12]}  Bc1 {[%clk 0:00:16]} 59. g5 {[%clk 0:00:12]}  Ba3 {[%clk 0:00:15]} 60. Kf6 {[%clk 0:00:11]}  Bf8 {[%clk 0:00:16]} 61. Kf7 {[%clk 0:00:11]}  Bc5 {[%clk 0:00:16]} 62. g6 {[%clk 0:00:11]}  Bd4 {[%clk 0:00:17]} 1-0


[Site "https://www.chess.com"]